lending/lending_fUSD_20240207
["ID","MTS","AMOUNT","RATE_DAILY","PERIOD"]
[313431099,1707340234852,-153.69,0.000427,4]
[313431100,1707340234861,-153.69,0.000427,4]
[313431101,1707340234870,-247.32726579,0.00042865,4]
[313431102,1707340234880,-155.0,0.00042865,4]
[313431103,1707340234889,-2048.783,0.00042955,2]
[313431104,1707340234898,-359.32,0.00042955,2]
[313431105,1707340234906,-212.74226633,0.00042981,11]
[313431106,1707340234915,-810.18251593,0.00043,30]
[313431107,1707340234924,-220.0,0.00043044,2]
[313431108,1707340234933,-73514.6994349,0.00043289,10]
[313431109,1707340234942,-3408.52114293,0.00043298,4]
[313431110,1707340234952,-1431.15228957,0.00043298,2]
[313431111,1707340234961,-639.95303666,0.00043298,4]
[313431112,1707340234970,-3898.85969142,0.00043298,4]
[313431113,1707340234979,-859.75239823,0.00043298,4]
[313431114,1707340234988,-553.48789176,0.00043298,2]
[313431115,1707340234999,-896.60943409,0.00043298,4]
[313431116,1707340235008,-416.73824066,0.00043298,4]
[313431117,1707340235017,-968.69811089,0.00043299,4]
[313431118,1707340235026,-1629.02713763,0.00043299,4]
[313431119,1707340235035,-1263.45893398,0.00043299,4]
[313431120,1707340235044,-15888.92210373,0.00043299,4]
[313431121,1707340235054,-43749.79348775,0.000433,30]
[313431122,1707340235063,-737.24515995,0.00043675,5]
[313431123,1707340235073,-151.63,0.00043836,2]
[313431124,1707340235082,-1220.81,0.00043836,15]
[313431125,1707340235092,-19802.0,0.00043985,2]
[313431126,1707340235101,-200.0,0.00044,2]
[313431127,1707340235111,-10219.1061623,0.00044,8]
[313431128,1707340235303,-682.2106328,0.00044098,2]
[313431129,1707340235358,-1000.0,0.000441,2]
[313431130,1707340235368,-400.0,0.00044455,2]
[313431131,1707340235378,-155.41345088,0.00044548,2]
[313431132,1707340235387,-4361.79989614,0.00044582,30]
[313431133,1707340235397,-205.0,0.00044582,31]
[313431134,1707340235407,-212.74226633,0.00044709,11]
[313431135,1707340235418,-447.50959423,0.00044991,20]
[313431136,1707340235431,-737.24515995,0.00045254,5]
[313431137,1707340235441,-200.0,0.00045343,20]
[313431138,1707340235450,-157.23,0.00045352,2]
[313431139,1707340235460,-170.61975319,0.00045744,7]
[313431140,1707340235470,-162.0,0.0004602,2]
[313431141,1707340235480,-212.74226633,0.00046436,12]
[313431142,1707340235490,-500.0,0.00046575,3]
[313431143,1707340235502,-151.63,0.00046575,2]
[313431144,1707340235511,-1000.0,0.000468,2]
[313431145,1707340235521,-737.24515995,0.00046833,5]
[313431146,1707340235531,-4431.62488397,0.000469,30]
[313431147,1707340235541,-300.0,0.000469,68]
[313431148,1707340235550,-1000.0,0.000469,55]
[313431149,1707340235559,-162.0,0.0004694,2]
[313431150,1707340235569,-5000.0,0.00047,30]
[313431151,1707340235579,-153.69,0.000472,5]
[313431152,1707340235589,-153.69,0.000472,5]
[313431153,1707340235599,-153.69,0.000472,5]
[313431154,1707340235609,-153.04798605,0.00047213,2]
[313431155,1707340235620,-447.50959423,0.00047395,23]
[313431156,1707340235630,-151.0,0.00047431,2]
[313431157,1707340235639,-1000.0,0.00047448,4]
[313431158,1707340235649,-1220.81,0.00047572,15]
[313431159,1707340235659,-1722.933094,0.000476,21]
[313431160,1707340235669,-200.0,0.000476,2]
[313431161,1707340235678,-241.0,0.0004779,2]
[313431162,1707340235688,-3158.89917588,0.00047806,2]
[313431163,1707340235697,-162.0,0.0004786,2]
[313431164,1707340235707,-300.0,0.000479,72]
[313431165,1707340235717,-1000.0,0.000479,57]
[313431166,1707340235726,-500.0,0.00047945,3]
[313431167,1707340235735,-1006.0055,0.00047999,2]
[313431168,1707340235746,-50000.0,0.00048,38]
[313431169,1707340235755,-203.533061,0.00048,25]
[313431170,1707340235764,-258.11,0.00048,60]
[313431171,1707340235776,-464.3470048,0.00048018,4]
[313431172,1707340235785,-1260.34340966,0.00048099,4]
[313431173,1707340235795,-86745.59213876,0.000481,30]
[313431174,1707340235804,-485.14,0.00048137,60]
[313431175,1707340235813,-212.74226633,0.00048163,13]
[313431176,1707340235823,-157.23,0.0004822,2]
[313431177,1707340235832,-302.0,0.00048228,4]
[313431178,1707340235841,-962.14280511,0.0004824,4]
[313431179,1707340235851,-737.24515995,0.00048412,5]
[313431180,1707340235860,-1400.0,0.000485,30]
[313431181,1707340235869,-157.58046542,0.00048508,4]
[313431182,1707340235880,-3723.54634248,0.00048508,4]
[313431183,1707340235889,-920.17591691,0.0004851,2]
[313431184,1707340235899,-103025.80265199,0.0004864,10]
[313431185,1707340235909,-1212.0,0.000487,117]
[313431186,1707340235919,-150.0,0.00048736,7]
[313431187,1707340235928,-300.0,0.00048739,7]
[313431188,1707340235938,-1500.0,0.00048744,7]
[313431189,1707340235947,-150.0,0.00048745,7]
[313431190,1707340235956,-150.0,0.0004875,7]
[313431191,1707340235966,-150.0,0.00048756,7]
[313431192,1707340235975,-150.0,0.00048769,7]
[313431193,1707340235985,-150.0,0.00048773,7]
[313431194,1707340235996,-162.0,0.0004878,2]
[313431195,1707340236006,-150.0,0.00048789,7]
[313431196,1707340236015,-150.0,0.00048791,7]
[313431197,1707340236024,-150.0,0.00048819,7]
[313431198,1707340236034,-150.0,0.00048821,7]
[313431199,1707340236043,-150.0,0.00048824,7]
[313431200,1707340236052,-1500.0,0.00048829,7]
[313431201,1707340236061,-150.0,0.00048839,7]
[313431202,1707340236071,-150.0,0.00048845,7]
[313431203,1707340236080,-150.0,0.00048858,7]
[313431204,1707340236090,-150.0,0.00048858,7]
[313431205,1707340236099,-150.0,0.00048871,7]
[313431206,1707340236109,-150.0,0.00048871,7]
[313431207,1707340236118,-150.0,0.00048878,7]
[313431208,1707340236127,-150.0,0.00048885,7]
[313431209,1707340236137,-250.0,0.0004889,2]
[313431210,1707340236147,-155.41345088,0.00048898,2]
[313431211,1707340236156,-1006.21711665,0.000489,30]
[313431212,1707340236166,-199.0,0.000489,28]
[313431213,1707340236175,-300.0,0.000489,76]
[313431214,1707340236184,-1000.0,0.000489,59]
[313431215,1707340236194,-150.0,0.00048903,7]
[313431216,1707340236203,-150.0,0.00048905,7]
[313431217,1707340236213,-150.0,0.00048909,7]
[313431218,1707340236222,-150.0,0.00048914,7]
[313431219,1707340236231,-150.0,0.00048925,7]
[313431220,1707340236241,-150.0,0.00048926,7]
[313431221,1707340236250,-150.0,0.00048942,7]
[313431222,1707340236260,-150.0,0.00048951,7]
[313431223,1707340236269,-150.0,0.00048953,7]
[313431224,1707340236279,-150.0,0.00048954,7]
[313431225,1707340236288,-150.01,0.00048965,2]
[313431226,1707340236298,-3310.68912683,0.00048965,2]
[313431227,1707340236307,-156.29371843,0.00048966,7]
[313431228,1707340236316,-931.32716,0.00048966,44]
[313431229,1707340236326,-150.0,0.00048982,7]
[313431230,1707340236335,-2450.0,0.0004899,2]
[313431231,1707340236345,-929.0,0.0004899,2]
[313431232,1707340236354,-296.47071973,0.00048998,4]
[313431233,1707340236364,-150.0,0.00048998,7]
[313431234,1707340236374,-291.5503127,0.00048999,4]
[313431235,1707340236384,-2314.46229003,0.00048999,4]
[313431236,1707340236394,-42488.95676307,0.00048999,4]
[313431237,1707340236404,-50000.0,0.00049,39]
[313431238,1707340236414,-690544.07690291,0.00049,30]
[313431239,1707340236429,-7544.91301688,0.00049,30]
[313431240,1707340236442,-668.952,0.00049,30]
[313431241,1707340236458,-1666.20206684,0.00049,30]
[313431242,1707340236489,-1153.450029,0.00049,30]
[313431243,1707340236502,-742.44,0.00049,30]
[313431244,1707340236514,-4910.35077126,0.00049,30]
[313431245,1707340236527,-10668.44425868,0.00049,30]
[313431246,1707340236539,-422.93054561,0.00049,30]
[313431247,1707340236550,-972.40604228,0.00049,30]
[313431259,1707340237683,-1158.8543368,0.000489,14]
[313431260,1707340237692,-731.1101681,0.00049,30]
[313431261,1707340237703,-645.46127399,0.00049,30]
[313431262,1707340237715,-439.0921,0.00049,30]
[313431263,1707340237726,-613.02158694,0.00049,30]
[313431264,1707340237737,-358.48667185,0.00049,30]
[313431265,1707340237750,-5000.0,0.00049,30]
[313431266,1707340237763,-500.0,0.00049,30]
[313431267,1707340237775,-274.06673411,0.00049,30]
[313431268,1707340237788,-771.07115909,0.00049,30]
[313431269,1707340237801,-300.0,0.00049,30]
[313431270,1707340237816,-375.78379918,0.00049,30]
[313431271,1707340237827,-9819.999999,0.00049,30]
[313431272,1707340237839,-344.42052689,0.00049,30]
[313431273,1707340237861,-857.28701452,0.00049,30]
[313431274,1707340237873,-2144.62625434,0.00049,30]
[313431275,1707340237884,-402.44575724,0.00049,30]
[313431276,1707340237895,-881.59954973,0.00049,30]
[313431277,1707340237906,-1115.3846688,0.00049,30]
[313431278,1707340237919,-1362.44103371,0.00049,30]
[313431279,1707340237930,-5609.169647,0.00049,30]
[313431280,1707340237959,-1385.73435,0.00049,30]
[313431281,1707340237983,-51618.20071494,0.00049,30]
[313431282,1707340237995,-56453.72520012,0.00049,30]
[313431283,1707340238006,-17687.140716,0.00049,30]
[313431393,1707340240266,-220.0,0.00046294,2]
[313431394,1707340240275,-707.18798757,0.00049,30]
[313431395,1707340240971,-883.28,0.00049,30]
[313431468,1707340242798,-320.0,0.00048174,2]
[313431470,1707340242808,-112.98989346,0.00049,30]
[313431481,1707340242930,-6092.58986766,0.00049,30]
[313431486,1707340242960,-2457.09624937,0.00049,30]
[313431488,1707340242972,-19127.78859375,0.00049,30]
[313431490,1707340242984,-1321.86465,0.00049,30]
[313431492,1707340242995,-455.39861255,0.00049,30]
[313431495,1707340243008,-13035.327277,0.00049,30]
[313431576,1707340245682,-3717.51812377,0.000489,2]
[313431577,1707340245691,-3310.68912683,0.00048989,2]
[313431578,1707340245701,-151.54195763,0.00048989,2]
[313431579,1707340245710,-35601.66591013,0.00048999,4]
[313431580,1707340245739,-2679.66724348,0.00048999,4]
[313431581,1707340245797,-8160.7430423,0.00048999,4]
[313431602,1707340246222,-308.97417599,0.00048999,4]
[313431604,1707340246234,-3283.7740674,0.00048999,4]
[313431606,1707340246248,-561.26055901,0.00048999,4]
[313431627,1707340246432,-500.0,0.00046575,30]
[313431629,1707340246443,-33515.80697758,0.00048999,4]
[313431632,1707340246461,-622.96682899,0.00048999,4]
[313431656,1707341356095,-523.5973687,0.00023547,2]
[313431657,1707341356116,-155.0,0.00023548,2]
[313431658,1707341356138,-438.0,0.00023549,2]
[313431659,1707341356161,-438.0,0.00026493,2]
[313431660,1707341356183,-438.0,0.00029436,2]
[313431661,1707341356208,-355.41996298,0.00032097,4]
[313431662,1707341356229,-155.0,0.00032098,2]
[313431663,1707341356249,-1398.95108499,0.00032098,4]
[313431664,1707341356274,-11203.0,0.000321,2]
[313431665,1707341356296,-438.0,0.0003238,2]
[313431666,1707341356317,-438.5439,0.00033501,2]
[313431667,1707341356337,-1656.48766009,0.00033601,2]
[313431668,1707341356357,-150.0,0.00033719,2]
[313431669,1707341356378,-150.0,0.00033719,3]
[313431670,1707341356403,-501.43543757,0.0003372,10]
[313431671,1707341356426,-2043.39003215,0.0003372,10]
[313431672,1707341356448,-451.99491817,0.0003372,10]
[313431673,1707341356469,-4444.45,0.0003372,2]
[313431674,1707341356490,-3151.21,0.0003372,2]
[313431675,1707341356511,-4559.28,0.0003372,5]
[313431676,1707341356532,-152.01,0.000338,2]
[313431677,1707341356553,-152.01,0.000338,2]
[313431678,1707341356573,-152.01,0.000338,2]
[313431679,1707341356593,-152.01,0.000338,2]
[313431680,1707341356614,-152.01,0.000338,2]
[313431681,1707341356636,-1082.44794332,0.00033839,7]
[313431682,1707341356658,-438.0,0.00035323,2]
[313431683,1707341356679,-175.33,0.00035622,2]
[313431684,1707341356699,-210.0,0.00037091,3]
[313431685,1707341356719,-210.0,0.00037091,2]
[313431686,1707341356740,-152.01,0.000383,3]
[313431687,1707341356764,-152.01,0.000383,3]
[313431688,1707341356790,-152.01,0.000383,3]
[313431689,1707341356811,-152.01,0.000383,3]
[313431690,1707341356837,-152.01,0.000383,3]
[313431691,1707341359123,155.0,0.00023546,2]
[313431692,1707341359173,1041.21930755,0.00026492,2]
[313431693,1707341403181,150.0,0.00026492,2]
[313431694,1707341403394,150.0,0.00026492,2]
[313431695,1707341403578,150.0,0.00026492,2]
[313431696,1707341403787,150.0,0.00026492,2]
[313431697,1707341403999,150.0,0.00026492,2]
[313431698,1707341404199,150.0,0.00026492,2]
[313431699,1707341404408,150.0,0.00026492,2]
[313431700,1707341404622,150.0,0.00026492,2]
[313431701,1707341404829,150.0,0.00026492,2]
[313431702,1707341405616,150.0,0.00026492,2]
[313431703,1707341405712,150.0,0.00026492,2]
[313431704,1707341405824,150.0,0.00026492,2]
[313431705,1707341406024,150.0,0.00026492,2]
[313431706,1707341406174,150.0,0.00026492,2]
[313431707,1707341406269,150.0,0.00026492,2]
[313431708,1707341406326,150.0,0.00026492,2]
[313431709,1707341406436,150.0,0.00026492,2]
[313431710,1707341406634,150.0,0.00026492,2]
[313431711,1707341406840,150.0,0.00026492,2]
[313431712,1707341407068,150.0,0.00026492,2]
[313431713,1707341407285,150.0,0.00026492,2]
[313431714,1707341407521,150.0,0.00026492,2]
[313431715,1707341407718,150.0,0.00026492,2]
[313431716,1707341407899,150.0,0.00026492,2]
[313431717,1707341408127,150.0,0.00026492,2]
[313431718,1707341408331,150.0,0.00026492,2]
[313431719,1707341408540,150.0,0.00026492,2]
[313431720,1707341408756,150.0,0.00026492,2]
[313431721,1707341408933,150.0,0.00026492,2]
[313431722,1707341409484,150.0,0.00026492,2]
[313431723,1707341409555,150.0,0.00026492,2]
[313431724,1707341409770,152.65343503,0.00026492,2]
[313431725,1707341409996,19716.07866399,0.0003372,10]
[313431726,1707341417597,155.0,0.00026492,2]
[313431727,1707341417749,250.0,0.00023549,2]
[313431728,1707341419954,155.0,0.00023843,2]
[313431729,1707341421002,386.90356981,0.00026492,2]
[313431730,1707341421613,277.74795086,0.00026492,2]
[313431731,1707341422669,155.0,0.00026492,2]
[313431732,1707341422812,887.79146733,0.00026492,2]
[313431733,1707341423192,268.31807062,0.00026492,2]
[313431734,1707341423898,778.6407282,0.00026492,7]
[313431735,1707341424294,1102.12865025,0.00026492,2]
[313431736,1707341424956,283.92096419,0.00026492,2]
[313431737,1707341424982,155.0,0.00026492,2]
[313431738,1707341425598,155.0,0.00026492,2]
[313431739,1707341425841,155.0,0.00026492,2]
[313431756,1707341431868,-300.0,0.000407,2]
[313431758,1707341431878,-349.51389996,0.00040899,4]
[313431760,1707341431890,-596.71805898,0.00040899,4]
[313431763,1707341431899,-150.0,0.000409,2]
[313431765,1707341431909,-150.0,0.00041448,2]
[313431767,1707341431919,-150.0,0.00041899,5]
[313431769,1707341431928,-8925.82802007,0.000419,30]
[313431776,1707341431984,-5753.17361831,0.000419,30]
[313431778,1707341431993,-224.04406869,0.00042489,2]
[313431780,1707341432003,-155.03,0.00042589,2]
[313431782,1707341432012,-152.01,0.000428,4]
[313431784,1707341432022,-152.01,0.000428,4]
[313431786,1707341432031,-152.01,0.000428,4]
[313431788,1707341432040,-152.01,0.000428,4]
[313431790,1707341432050,-152.01,0.000428,4]
[313431792,1707341432059,-926.0,0.00043285,30]
[313431794,1707341432069,-284.82513962,0.00043556,4]
[313431796,1707341432080,-266.0,0.0004369,2]
[313431798,1707341432089,-150.0,0.00043768,30]
[313431800,1707341432099,-351.0,0.0004379,2]
[313431801,1707341432108,-531.74,0.00043799,15]
[313431802,1707341432118,-2924.66947584,0.0004389,2]
[313431803,1707341432130,-5926.33052416,0.0004389,2]
[313431804,1707341432139,-2478.34541584,0.00043898,2]
[313431805,1707341432149,-439.42406,0.00043898,2]
[313431806,1707341432161,-2341.68174,0.00043898,2]
[313431807,1707341432171,-500.0,0.00043899,2]
[313431808,1707341432180,-167.78399747,0.000439,8]
[313431809,1707341432189,-970.0,0.000439,49]
[313431810,1707341432199,-214.91387292,0.00043952,2]
[313431811,1707341432208,-155.58646028,0.00043996,4]
[313431812,1707341432218,-199.28447533,0.00043996,4]
[313431813,1707341432227,-1529.07420923,0.00043996,4]
[313431814,1707341432237,-1451.24124082,0.00043996,4]
[313431815,1707341432246,-155.0,0.00043996,4]
[313431816,1707341432255,-1377.22850274,0.00043996,4]
[313431817,1707341432265,-526.21762846,0.00043996,4]
[313431818,1707341432274,-1041.04719538,0.00043996,4]
[313431819,1707341432283,-500.0,0.00043996,4]
[313431820,1707341432293,-280.73169892,0.00043996,4]
[313431821,1707341432302,-630.36611062,0.00043996,4]
[313431822,1707341432311,-336.08645099,0.00043996,4]
[313431823,1707341432321,-584.52572473,0.00043996,4]
[313431824,1707341432330,-1493.79988571,0.00043996,4]
[313431825,1707341432340,-944.35797001,0.00043996,4]
[313431826,1707341432349,-751.18516349,0.00043996,4]
[313431827,1707341432359,-450.34109723,0.00043996,4]
[313431828,1707341432368,-312.3764529,0.00043996,4]
[313431829,1707341432378,-402.21754644,0.00043996,4]
[313431830,1707341432387,-319.48075368,0.00043996,4]
[313431831,1707341432398,-733.59606579,0.00043996,4]
[313431832,1707341432407,-1089.39657821,0.00043997,4]
[313431833,1707341432420,-154.97342179,0.00043997,4]
[313431834,1707341432429,-1571.22123839,0.00043998,2]
[313431835,1707341432445,-672.5188612,0.00043998,2]
[313431836,1707341432465,-1941.72228525,0.00043998,2]
[313431837,1707341432477,-412.74688738,0.00043998,2]
[313431838,1707341432588,-8367.40000001,0.00043998,2]
[313431839,1707341432600,-4441.453176,0.00043998,2]
[313431840,1707341433042,-56.58525289,0.00043998,2]
[313431841,1707341433054,-580.09952,0.00043998,2]
[313431842,1707341438769,887.79146733,0.00026492,2]
[313431843,1707341439622,219.81039531,0.00026492,2]
[313431844,1707341439958,254.53226998,0.00023843,2]
[313431845,1707341440336,200.0,0.00026492,2]
[313431854,1707341440524,-567.103008,0.00041447,4]
[313431855,1707341440582,-236.88527407,0.00041447,4]
[313431856,1707341440593,-155.0,0.00043556,4]
[313431857,1707341440602,-1077.66669131,0.00043898,2]
[313431858,1707341440612,-553.48789176,0.00043997,2]
[313431859,1707341440621,-1431.15228957,0.00043997,2]
[313431860,1707341440631,-1406.59064834,0.00043997,4]
[313431861,1707341440642,-1764.92992517,0.00043997,4]
[313431862,1707341440654,-8878.55194588,0.00043997,4]
[313431863,1707341440666,-30438.88424368,0.00043997,4]
[313431864,1707341440675,-21581.11575632,0.00043998,2]
[313431865,1707341440687,-915.76729242,0.00043998,2]
[313431866,1707341440719,-5248.9,0.00043998,2]
[313431867,1707341440760,-12914.67608279,0.00043998,2]
[313431868,1707341440773,-22654.87256506,0.00043998,2]
[313431869,1707341440783,-3692.85,0.00043998,2]
[313431870,1707341440792,-2415.64344024,0.00044,30]
[313431871,1707341440804,-690.71,0.00044,2]
[313431872,1707341440815,-200.0,0.00044037,2]
[313431873,1707341440824,-200.0,0.00044037,2]
[313431874,1707341440833,-200.0,0.00044037,2]
[313431875,1707341440844,-167.78399745,0.0004423,8]
[313431876,1707341440854,-499.99,0.0004423,2]
[313431877,1707341440863,-200.0,0.00044373,10]
[313431878,1707341440872,-165.8,0.00044435,2]
[313431879,1707341440882,-222.98,0.00044465,2]
[313431880,1707341440892,-170.75,0.00044508,2]
[313431881,1707341440902,-500.0,0.00044508,3]
[313431882,1707341440911,-167.78399745,0.0004456,8]
[313431883,1707341440920,-279.85,0.00044577,2]
[313431884,1707341440930,-152.52,0.00044609,2]
[313431885,1707341440939,-153.22,0.00044769,2]
[313431886,1707341440948,-167.78399745,0.00044889,9]
[313431887,1707341440957,-500.0,0.0004489,30]
[313431888,1707341440967,-153.22,0.00044898,2]
[313431889,1707341440976,-1000.0,0.000449,2]
[313431890,1707341440985,-1000.0,0.000449,51]
[313431891,1707341440994,-151.63,0.00044973,2]
[313431892,1707341441004,-532.0,0.0004499,2]
[313431893,1707341441013,-504.28485088,0.00045,7]
[313431894,1707341441023,-5018.2,0.00045,2]
[313431895,1707341441033,-246.07925914,0.00045,2]
[313431896,1707341441043,-153.22,0.00045028,2]
[313431897,1707341441053,-250.0,0.00045074,120]
[313431898,1707341441062,-2000.0,0.00045074,120]
[313431899,1707341441072,-186.6,0.0004511,2]
[313431900,1707341441082,-153.22,0.00045157,2]
[313431901,1707341441092,-167.78399745,0.00045219,9]
[313431903,1707341441101,-200.0,0.0004522,120]
[313431905,1707341441110,-1017.34,0.00045243,15]
[313431907,1707341441119,-150.0,0.00045264,2]
[313431909,1707341441128,-153.22,0.00045287,2]
[313431911,1707341441138,-1813.85,0.00045321,5]
[313431913,1707341441147,-153.22,0.00045417,2]
[313431915,1707341441156,-170.61975319,0.00045433,7]
[313431917,1707341441165,-155.03,0.00045457,2]
[313431919,1707341441174,-1780.25,0.00045533,5]
[313431921,1707341441183,-153.22,0.00045546,2]
[313431923,1707341441192,-270.0,0.0004559,2]
[313431925,1707341441202,-153.22,0.00045676,2]
[313431926,1707341441211,-1077.66669131,0.00045694,2]
[313431927,1707341441220,-2478.34541584,0.00045703,2]
[313431928,1707341441230,-1546.84012333,0.00045798,2]
[313431929,1707341441239,-153.22,0.00045806,2]
[313431930,1707341441249,-1826.15,0.00045856,5]
[313431931,1707341441258,-1000.0,0.000459,53]
[313431932,1707341441268,-153.22,0.00045935,2]
[313431933,1707341441277,-150.0,0.0004605,2]
[313431934,1707341441286,-153.22,0.00046065,2]
[313431935,1707341441295,-210.0,0.00046089,5]
[313431936,1707341441305,-153.22,0.00046194,2]
[313431937,1707341441314,-1841.98,0.0004632,5]
[313431938,1707341441323,-153.22,0.00046324,2]
[313431939,1707341441332,-153.22,0.00046454,2]
[313431940,1707341441342,-435.60617142,0.00046549,2]
[313431941,1707341441351,-500.0,0.00046575,30]
[313431942,1707341441361,-153.22,0.00046583,2]
[313431943,1707341441370,-153.22,0.00046713,2]
[313431944,1707341441379,-152.0,0.00046721,3]
[313431945,1707341441388,-153.22,0.00046842,2]
[313431946,1707341441397,-4431.62488397,0.000469,30]
[313431947,1707341441407,-1000.0,0.000469,55]
[313431948,1707341441416,-150.0,0.0004697,2]
[313431949,1707341441425,-153.22,0.00046972,2]
[313431950,1707341441434,-5000.0,0.00047,30]
[313431951,1707341441444,-1790.94,0.00047091,5]
[313431952,1707341441453,-153.22,0.00047102,2]
[313431953,1707341441462,-500.0,0.00047123,35]
[313431954,1707341441472,-152.01,0.000472,5]
[313431955,1707341441482,-152.01,0.000472,5]
[313431956,1707341441491,-152.01,0.000472,5]
[313431957,1707341441500,-152.01,0.000472,5]
[313431959,1707341441509,-152.01,0.000472,5]
[313431961,1707341441518,-254.0,0.0004749,2]
[313431963,1707341441527,-372.87193154,0.00047508,13]
[313431964,1707341441537,-2478.34541584,0.00047508,2]
[313431965,1707341441546,-1000.0,0.00047508,2]
[313431966,1707341441555,-14060.0,0.0004759,2]
[313431967,1707341441564,-286.0,0.0004759,2]
[313431968,1707341441573,-200.0,0.00047591,20]
[313431969,1707341441582,-206.7629,0.00047608,2]
[313431970,1707341441592,-39410.0927,0.00047608,2]
[313431971,1707341441600,-5669.3871,0.00047608,2]
[313431972,1707341441609,-44829.20021861,0.00047608,2]
[313431973,1707341441623,-55170.79978139,0.00047608,2]
[313431974,1707341441632,-252.1938,0.00047608,2]
[313431975,1707341441641,-1811.89,0.00047663,5]
[313431976,1707341441650,-500.0,0.00047671,40]
[313431977,1707341441659,-215.09368759,0.0004769,30]
[313431978,1707341441668,-222.61557578,0.0004769,30]
[313431979,1707341441678,-17561.0,0.0004769,2]
[313431980,1707341441688,-337.0,0.0004769,2]
[313431981,1707341441698,-1630.42602941,0.00047698,19]
[313431982,1707341441708,-211.3961839,0.00047698,2]
[313431983,1707341441717,-589.79612796,0.00047698,5]
[313431984,1707341441728,-1000.0,0.000477,2]
[313431985,1707341441737,-289.73142306,0.00047706,4]
[313431986,1707341441747,-1139.78306733,0.00047706,4]
[313431987,1707341441757,-283.83163888,0.00047706,4]
[313431988,1707341441767,-500.0,0.00047706,4]
[313431989,1707341441777,-155.26201102,0.00047706,4]
[313431990,1707341441787,-536.37733122,0.00047706,4]
[313431991,1707341441797,-1161.88262757,0.00047706,4]
[313431992,1707341441810,-467.38018717,0.00047706,4]
[313431993,1707341441820,-432.51651173,0.00047706,4]
[313431994,1707341441831,-156.60153268,0.00047706,4]
[313431995,1707341441841,-374.81233994,0.00047706,4]
[313431996,1707341441852,-156.6898714,0.00047706,4]
[313431997,1707341441862,-155.0,0.00047706,4]
[313431998,1707341441872,-525.12679006,0.00047706,4]
[313431999,1707341441883,-202.77097058,0.00047706,4]
[313432000,1707341441895,-500.0,0.00047706,30]
[313432001,1707341441904,-181.58179141,0.00047706,4]
[313432002,1707341441914,-156.80824208,0.00047707,2]
[313432003,1707341441923,-31416.72684274,0.00047708,2]
[313432004,1707341441936,-34735.0973699,0.00047708,2]
[313432005,1707341441948,-106618.4190597,0.00047708,2]
[313432006,1707341441960,-279.32333163,0.00047708,2]
[313432007,1707341441977,-1512.623474,0.00047708,2]
[313432008,1707341441989,-1335.55499613,0.00047708,2]
[313432009,1707341442001,-1699.13,0.00047708,2]
[313432010,1707341442024,-5568.29692822,0.00047708,2]
[313432011,1707341442038,-2278.8,0.00047708,2]
[313432012,1707341442056,-298.62800448,0.00047708,2]
[313432013,1707341442069,-799.68952063,0.00047708,2]
[313432014,1707341442082,-360.0,0.00047708,2]
[313432015,1707341442095,-1264.65426,0.00047708,2]
[313432016,1707341442108,-403.70016999,0.00047708,2]
[313432017,1707341442138,-6752.36214258,0.00047708,2]
[313432018,1707341442148,-193.88407955,0.00047788,2]
[313432019,1707341442158,-11002.0,0.0004779,2]
[313432020,1707341442169,-26305.83800586,0.00047798,11]
[313432021,1707341442181,-7019.90363144,0.00047798,11]
[313432022,1707341442435,-416.73824066,0.00043997,4]